Cogmind - Beta 11 X3 *** ADVENTURER MODE // 2021.04.09 @ 23:13:49 Player: Luigi Panache Result: Destroyed by Tracker with Linked Autogun Performance ------------- Evolutions (6) 3000 Regions Visited (23) 4600 Robots Destroyed (248) 1240 Value Destroyed (11008) 11008 Prototype IDs (219) 4380 Alien Tech Used (1) 200 Bonus (5073) 5073 TOTAL SCORE: 29501 Bonus ------- High Alert Combat Kills 505 Follower Combat Kills 326 Network Hubs Disabled 200 Met Data Miner 300 Used Data Conduit 3000 A7 Reached Mainframe 300 Pursued by Intercept 1000 Friendly Fire -558 Cogmind --------- Core Integrity 0/1150 Matter 77/300 Energy 393/450 System Corruption 25% Temperature Warm (183) Movement Immobile (Siege) Location -4/Factory Parts ------- > --- POWER (2) -------- (None) > --- PROPULSION (8) --- Heavy Treads > --- UTILITY (6) ------ Energy Well > --- WEAPON (3) ------- (None) > --- INVENTORY (5) ---- (None) Peak State ------------ > --- POWER ------------ Antimatter Reactor Quantum Reactor > --- PROPULSION ------- Light Treads Light Treads Improved Treads Armored Medium Treads Centrium Heavy Treads Centrium Heavy Treads > --- UTILITY ---------- Advanced Cooling System Cargo Storage Unit Layered Heavy Armor Plating Quantum Router > --- WEAPON ----------- Gauss Rifle Gauss Rifle Improved KE Penetrator > --- INVENTORY -------- Improved Treads Thermal Converter Advanced Heat Sink High-capacity Storage Unit Huge Storage Unit Energy Well Compact Matter Pod Experimental Terrain Scanner Advanced Terrain Scan Processor Experimental Terrain Scan Processor Layered Medium Armor Plating Layered Medium Armor Plating Layered Heavy Armor Plating Layered Heavy Armor Plating System Shield Dynamic Insulation System Heavy Phase Cannon Neutron Cannon Long-range Missile Launcher Mini Smartbomb Launcher Mini Smartbomb Launcher Phasing Sabre Phasing Sabre Spear Makeshift Spear CR-A16's Pointy Stick [Rating: 121] Favorites ----------- Power Antimatter Reactor Engine Reinforced Deuterium Engine Power Core Fission Core Reactor Antimatter Reactor Propulsion Light Treads Treads Light Treads Leg Aluminum Leg Wheel Compact Wheel Utility Quantum Router Device Kinecellerator Storage Cargo Storage Unit Processor Advanced Targeting Computer Hackware Quantum Router Protection Hardened Medium Armor Plating Weapon Flak Gun Energy Gun Lightning Gun Energy Cannon Neutron Cannon Ballistic Gun Flak Gun Ballistic Cannon Gauss Cannon Launcher Shock Bomb Launcher Slashing Weapon Phasing Sabre Piercing Weapon Makeshift Spear Build | -11 -10 -10 -9 -9 -9 -8 -8 -7 -7 -7 -7 -6 -6 -6 -6 -6 -5 -5 -5 -5 -5 -5 -4 ------- Run | Scr Mat Min Mat Min Exi Min Mat Fac Low Low Dat Pro Fac Low Low Zio Pro Fac Ext Cet Arc Hub Fac Slots Evolved 12 | . . . 2 . . . 2 2 . . . . 2 . . . . 2 . . . . 2 Power 1 | . . . . . . . . . . . . . 1 . . . . . . . . . . Propulsion 6 | . . . 2 . . . . 1 . . . . 1 . . . . . . . . . 2 Utility 4 | . . . . . . . 2 1 . . . . . . . . . 1 . . . . . Weapon 1 | . . . . . . . . . . . . . . . . . . 1 . . . . . Parts Attached 173 | . 1 . 12 2 1 . 11 8 6 2 12 19 18 1 3 3 . 20 15 5 2 5 27 Power 17 | . . . 1 . . . 1 1 . . 1 4 1 . 1 1 . 1 1 1 . . 3 Engine 10 | . . . 1 . . . 1 1 . . 1 2 . . . 1 . . . . . . 3 Core 2 | . . . . . . . . . . . . . . . 1 . . . 1 . . . . Reactor 5 | . . . . . . . . . . . . 2 1 . . . . 1 . 1 . . . Propulsion 51 | . . . 6 . . . 1 2 2 . 6 6 3 . . . . 2 9 2 . 2 10 Treads 49 | . . . 4 . . . 1 2 2 . 6 6 3 . . . . 2 9 2 . 2 10 Leg . | . . . . . . . . . . . . . . . . . . . . . . . . Wheel 2 | . . . 2 . . . . . . . . . . . . . . . . . . . . Hover . | . . . . . . . . . . . . . . . . . . . . . . . . Flight . | . . . . . . . . . . . . . . . . . . . . . . . . Utility 40 | . 1 . 1 1 1 . 3 2 1 2 2 4 6 1 . 2 . 3 1 1 1 1 6 Device 9 | . . . . 1 . . . . . 1 . 2 . . . . . 2 1 . . . 2 Storage 5 | . . . 1 . 1 . . . . . . 1 1 . . . . . . . . . 1 Processor 3 | . 1 . . . . . 1 1 . . . . . . . . . . . . . . . Hackware 3 | . . . . . . . . . . . . . 2 . . 1 . . . . . . . Protection 20 | . . . . . . . 2 1 1 1 2 1 3 1 . 1 . 1 . 1 1 1 3 Artifact . | . . . . . . . . . . . . . . . . . . . . . . . . Weapon 65 | . . . 4 1 . . 6 3 3 . 3 5 8 . 2 . . 14 4 1 1 2 8 Energy Gun 11 | . . . 3 . . . 2 2 . . 2 1 . . . . . . . . 1 . . Energy Cannon 9 | . . . . . . . 1 . . . . 3 . . . . . 2 1 . . . 2 Ballistic Gun 17 | . . . 1 1 . . 1 1 . . . . 2 . . . . 5 1 1 . 2 2 Ballistic Cannon 11 | . . . . . . . . . 2 . . 1 2 . . . . 4 2 . . . . Launcher 10 | . . . . . . . 2 . 1 . . . 2 . 2 . . . . . . . 3 Special Weapon . | . . . . . . . . . . . . . . . . . . . . . . . . Impact Weapon . | . . . . . . . . . . . . . . . . . . . . . . . . Slashing Weapon 1 | . . . . . . . . . . . . . . . . . . . . . . . 1 Piercing Weapon 6 | . . . . . . . . . . . 1 . 2 . . . . 3 . . . . . Special Melee Weapon . | . . . . . . . . . . . . . . . . . . . . . . . . Unidentified Prototypes 7 | . . . 1 . . . 1 1 . . . . 2 1 . . . 1 . . . . . Corrupted Parts 17 | . . . . . . . . . . . . 12 . . . . . . . 4 . . 1 System Corruption 94 | . . . . . . . . . . . . 76 . . . . . . . 8 . . 10 Parts Lost 72 | . . . 1 . . . . . 3 . 4 6 . . 2 . . 7 9 3 2 1 34 Power 8 | . . . 1 . . . . . . . . . . . 1 . . 1 1 . . . 4 Propulsion 27 | . . . . . . . . . . . 3 4 . . . . . 2 5 . 2 . 11 Utility 14 | . . . . . . . . . 2 . . 1 . . . . . 1 . 1 . . 9 Weapon 23 | . . . . . . . . . 1 . 1 1 . . 1 . . 3 3 2 . 1 10 Highest Loss Streak 20 | . . . 1 . . . . . 3 . 4 5 . . 2 . . 5 5 3 2 1 20 Average Slot Usage (%) 80 | . 98 100 98 99 100 100 100 100 91 99 94 90 85 73 67 66 66 71 72 71 59 61 64 Engine 5 | . 14 14 10 11 11 11 9 7 7 7 7 7 6 6 6 6 6 3 . . . . 4 Core 1 | . . . . . . . . . . . . . . . 1 6 6 5 2 . . . . Reactor 2 | . . . . . . . . . . . . . 6 6 2 . . 1 5 9 11 11 3 Treads 26 | . . . 28 44 44 44 36 38 37 38 35 31 27 20 20 20 20 14 19 25 13 15 21 Device 4 | . . . . 4 11 11 9 7 2 1 7 10 2 . . . . 2 5 5 5 5 4 Storage 6 | . 14 14 11 11 11 11 9 7 7 7 7 7 6 6 6 6 6 5 5 5 5 5 5 Processor 4 | . 12 14 11 6 . . . 13 15 15 15 9 3 . . . . . . . . . . Hackware 7 | . . . . . . . . . . . . . 10 13 13 13 20 17 17 9 5 5 4 Protection 4 | . . . . . . . 17 8 4 13 7 6 5 6 6 5 . 2 . 1 4 5 4 Energy Gun 2 | . 14 14 11 11 11 11 9 3 . . 6 9 . . . . . . . . 4 1 . Ballistic Gun 5 | . 14 14 11 11 11 11 7 10 6 . . . . 6 1 . . 2 7 8 5 8 10 Ballistic Cannon 2 | . . . . . . . . . 8 15 4 . 1 6 1 . . 5 5 . . . . Launcher 1 | . . . . . . . 1 . . . . . 6 . 6 6 6 . . . . . 2 Naked Turns . | . . . . . . . . . . . . . . . . . . . . . . . . Heaviest Build 212 | 12 12 12 21 26 56 56 75 75 70 74 74 83 192 192 193 181 160 187 188 198 196 212 212 Greatest Support 257 | 20 20 20 83 83 83 83 83 103 103 103 103 130 210 210 210 210 210 210 180 206 160 210 257 Greatest Overweight (x) 2 | . . . . . . . . . . . . 2 . . . . . 1 2 2 1 1 2 Average Overweight (x) . | . . . . . . . . . . . . . . . . . . . . . 1 1 . Largest Inventory Capacity 30 | . 8 8 10 10 20 20 20 20 20 20 20 20 30 30 30 30 30 30 30 30 30 30 30 Average Capacity 24 | . 8 8 8 10 14 20 20 20 20 20 20 19 23 30 30 30 30 30 30 30 30 30 29 Most Carried 30 | . 8 8 10 10 14 14 20 20 20 20 20 20 23 26 28 30 30 29 25 24 24 29 30 Average Carried 22 | . 7 8 8 10 11 14 17 19 19 19 19 19 20 24 26 29 30 26 23 23 22 27 27 Final Capacity 30 | 8 8 8 10 10 20 20 20 20 20 20 20 20 30 30 30 30 30 30 30 30 30 30 5 Final Carried 30 | 6 8 8 10 10 14 14 20 20 18 20 20 19 23 26 28 30 30 25 22 24 22 29 . Class Distribution -------------------- 33% | Wizard-Mutant 21% | Scavenger-Mutant 18% | Mutant 10% | Hacker-Mutant 9% | Wizard-Gunner 4% | Scavenger-Tank Dominant Class ---------------- Mutant | -10/Materials Mutant | -10/Mines Mutant | -9/Materials Mutant | -9/Mines Mutant | -9/Exiles Mutant | -8/Mines Mutant | -8/Materials Scavenger-Mutant | -7/Factory Scavenger-Mutant | -7/Lower Caves Scavenger-Mutant | -7/Lower Caves Scavenger-Mutant | -7/Data Miner Scavenger-Mutant | -6/Proximity Caves Wizard-Mutant | -6/Factory Wizard-Mutant | -6/Lower Caves Wizard-Mutant | -6/Lower Caves Wizard-Mutant | -6/Zion Wizard-Mutant | -5/Proximity Caves Wizard-Mutant | -5/Factory Wizard-Gunner | -5/Extension Wizard-Mutant | -5/Cetus Hacker-Mutant | -5/Archives Hacker-Mutant | -5/Hub_04(d) Hacker-Mutant | -4/Factory Resources | -11 -10 -10 -9 -9 -9 -8 -8 -7 -7 -7 -7 -6 -6 -6 -6 -6 -5 -5 -5 -5 -5 -5 -4 ----------- Run | Scr Mat Min Mat Min Exi Min Mat Fac Low Low Dat Pro Fac Low Low Zio Pro Fac Ext Cet Arc Hub Fac Matter Collected 6403 | 189 33 15 178 . . 46 302 224 205 111 120 206 285 183 207 . 165 663 1177 229 244 401 1220 Remotely . | . . . . . . . . . . . . . . . . . . . . . . . . Salvage Created 12024 | . 91 108 482 . . 147 933 436 183 43 462 374 285 130 525 . 1106 1596 1311 384 760 571 2097 Parts 545 | . 8 4 36 . . 12 48 32 9 4 30 18 17 6 23 . 33 48 61 15 27 33 81 Haulers Intercepted 4 | . . . 1 . . . . 1 . . . . . . . . . 2 . . . . . Recyclers Shooed 6 | . . . . . . . . . . . . . . . . . . 1 1 . . . 4 Parts Field Recycled . | . . . . . . . . . . . . . . . . . . . . . . . . Retrieved Matter . | . . . . . . . . . . . . . . . . . . . . . . . . Parts Self-Destructed 36 | . . . . . . . . . 9 5 . 5 . 6 . 4 7 . . . . . . Prevented 54 | . . . . . . . . . . . . 13 . . 20 . 21 . . . . . . Kills | -11 -10 -10 -9 -9 -9 -8 -8 -7 -7 -7 -7 -6 -6 -6 -6 -6 -5 -5 -5 -5 -5 -5 -4 ------- Run | Scr Mat Min Mat Min Exi Min Mat Fac Low Low Dat Pro Fac Low Low Zio Pro Fac Ext Cet Arc Hub Fac Combat Hostiles Destroyed 182 | . 2 2 11 . . 4 17 8 14 3 4 5 2 4 6 . 15 18 22 7 4 7 27 Melee 4 | . . . . . . . . . . . . . . . . . . 3 1 . . . . Guns 77 | . 1 2 10 . . 3 6 7 . . . 2 1 4 . . . 1 12 6 2 7 13 Cannons 37 | . . . . . . . . . 9 3 . 1 1 . . . . 9 9 1 . . 4 AOE 45 | . 1 . 1 . . 1 11 1 5 . . . . . 2 . 9 4 . . . . 10 Classes Destroyed 17 | . 1 . 4 . . 1 4 1 1 . . 1 1 . 2 . . . . . 1 . . Worker 19 | . . . 1 . . 1 2 . . . . . 2 . . . . 5 2 . . 3 3 Builder 10 | . . . . . . . 1 . . . . . 1 . . . . 2 2 . . 3 1 Hauler 4 | . . . 1 . . . . 1 . . . . . . . . . 2 . . . . . Recycler 11 | . . . . . . 1 2 . . . . . 1 . . . . 3 1 . . . 3 Minesweeper 1 | . . . . . . . . . . . . . . . 1 . . . . . . . . Mechanic 1 | . . . . . . . . . . . . . 1 . . . . . . . . . . Operator 11 | . . . . . . . . . . . . . . . . . . . . . 9 1 1 Watcher 6 | . . . . . . . 1 1 . . . . . . . . . 2 1 . . . 1 Swarmer 28 | . . . 4 . . 4 . 4 5 3 . . . 3 . . . . 3 2 . . . Grunt 83 | . 2 2 5 . . . 12 . 6 . . 3 . . 5 . 13 11 9 4 . 3 8 Brawler 5 | . . . . . . . . . 1 . . 1 . . . . . . . . . . 3 Duelist 4 | . . . . . . . 1 . 1 . . . . . . . 1 . . . . 1 . Sentry 21 | . . . 2 . . . 3 3 1 . . . 1 . . . 1 . 4 . 4 1 1 Hunter 13 | . . . . . . . 1 . . . . . . . . . . 1 3 . . 2 6 Programmer 13 | . . . . . . . . 1 . . . . 1 . . . . 4 . . . . 7 Behemoth 7 | . . . . . . . . . . . . 1 . 1 1 . . . 2 . . . 2 Cetus Guard 1 | . . . . . . . . . . . . . . . . . . . . 1 . . . Enhanced Grunt 4 | . . . . . . . . . . . 4 . . . . . . . . . . . . Tracker 1 | . . . . . . . . . . . . . . . . . . 1 . . . . . Combat Programmer 1 | . . . . . . . . . . . . . . . . . . 1 . . . . . Samaritan 1 | . . . . . . . . . . . . . . . 1 . . . . . . . . Thug 1 | . . . . . . . . . . . . . . . . . . . 1 . . . . Savage 2 | . . . . . . . . . . . . . . . . . 1 . 1 . . . . Best Kill Streak 12 | . 2 2 12 . . 6 6 6 11 3 1 4 3 3 3 . 4 9 8 6 10 6 5 Combat Bots Only 11 | . 2 2 11 . . 4 5 6 11 3 1 4 1 3 3 . 4 4 8 6 2 3 5 Max Kills in Single Turn 5 | . 1 1 2 . . 3 2 1 3 1 1 1 2 1 3 . 2 2 2 1 1 5 2 Gunslinging 1 | . . . 1 . . . . . . . . . . . . . . . . . . . . Exploded 3 | . 1 . 1 . . 1 2 1 3 . . . . . 2 . 2 2 . . . . 2 Melee 1 | . . . . . . . . . . . . . . . . . . 1 1 . . . . Uniques/NPCs Destroyed 1 | . . . . . . . . . . . 1 . . . . . . . . . . . . Data Miner (-7/Data Miner) Combat | -11 -10 -10 -9 -9 -9 -8 -8 -7 -7 -7 -7 -6 -6 -6 -6 -6 -5 -5 -5 -5 -5 -5 -4 -------- Run | Scr Mat Min Mat Min Exi Min Mat Fac Low Low Dat Pro Fac Low Low Zio Pro Fac Ext Cet Arc Hub Fac Damage Taken 19940 | . 33 50 318 . . 63 475 210 725 118 719 562 189 354 664 . 600 2027 1966 405 573 1276 8613 Core 2269 | . . . 76 . . . 23 14 30 26 40 60 15 36 . . 99 303 271 38 47 27 1164 Absorbed by Shields 49 | . . . . . . . . . . . . . . . . . . . . 49 . . . Reduced by Siege Mode 423 | . . . . . . . . . . . . . . . . . . 76 6 25 . . 316 Core Remaining (%) 80 | 100 . 100 . . . 81 95 . . . . 75 . . . . 82 . . . . 31 . Volleys Fired 582 | . 4 5 21 . . 4 32 19 18 5 20 20 10 11 27 . 27 66 56 25 43 36 133 Largest 3 | . 2 2 2 . . 2 2 2 2 2 2 2 2 2 2 . 1 3 3 3 2 3 3 Hottest 208 | . 60 60 63 . . 73 83 83 88 88 110 180 180 76 76 . 36 208 131 155 90 91 153 Shots Fired 1111 | . 8 10 42 . . 8 48 36 31 10 39 39 20 22 37 . 27 138 162 42 83 78 231 Gun 732 | . 8 10 42 . . 8 32 36 . . 39 37 9 11 2 . . 20 87 32 83 78 198 Cannon 271 | . . . . . . . . . 26 10 . 2 11 11 2 . . 104 75 10 . . 20 Launcher 108 | . . . . . . . 16 . 5 . . . . . 33 . 27 14 . . . . 13 Special . | . . . . . . . . . . . . . . . . . . . . . . . . Kinetic 756 | . 4 5 21 . . 4 16 23 26 10 . . 18 22 4 . . 97 162 32 42 72 198 Thermal 61 | . . . . . . . . . . . . 2 2 . . . . 27 . 10 . . 20 Explosive 30 | . . . . . . . 12 . 5 . . . . . . . . . . . . . 13 Electromagnetic 264 | . 4 5 21 . . 4 20 13 . . 39 37 . . 33 . 27 14 . . 41 6 . Robot Hit Streak 90 | . 5 15 54 . . 55 19 42 39 8 13 17 43 22 13 . 17 34 36 60 71 37 90 Robot Miss Streak 11 | . 1 . . . . 2 2 3 3 6 1 1 2 4 3 . 1 11 3 1 1 1 2 Penetration Max 2 | . . . . . . . . . . . . . . . . . . 1 2 . 1 1 1 Secondary Targets 9 | . . 1 4 . . . . . . . . 1 . . . . . . . . 1 . 2 Max Gunslinging Chain 1 | . . 1 1 . . . . . . . . 1 . . . . . . . . 1 . 1 Capacitor 1 | . . . . . . . . . . . . . . . . . . . . . . . 1 Shots Hit Robots 931 | . 6 10 39 . . 6 41 31 28 9 36 34 16 17 34 . 24 109 134 36 77 39 205 Core Hits 597 | . 3 4 19 . . 8 56 34 57 9 11 12 17 20 19 . 32 76 59 16 26 26 93 Critical Hits 63 | . . . . . . . . . . . . . 1 . . . . 12 17 4 7 2 20 Critical Kills 16 | . . . . . . . . . . . . . . . . . . 2 5 1 1 . 7 Critical Parts Destroyed 37 | . . . . . . . . . . . . . 1 . . . . 10 10 2 4 2 8 Melee Attacks 24 | . . . . . . . . . . . 1 . 7 . . . . 13 . . . . 3 Impact . | . . . . . . . . . . . . . . . . . . . . . . . . Slashing 3 | . . . . . . . . . . . . . . . . . . . . . . . 3 Piercing 21 | . . . . . . . . . . . 1 . 7 . . . . 13 . . . . . Sneak Attacks 1 | . . . . . . . . . . . 1 . . . . . . . . . . . . Combat Hostiles . | . . . . . . . . . . . . . . . . . . . . . . . . Follow-up Attacks 3 | . . . . . . . . . . . . . . . . . . 3 . . . . . Damage Inflicted 32008 | . 125 137 574 11 . 165 2066 839 1566 125 492 631 642 517 1039 . 1323 4272 4952 1104 2106 1509 7813 Guns 15408 | . 72 137 479 . . 96 630 756 . . 427 527 253 325 40 . . 435 2914 773 1976 968 4600 Cannons 7026 | . . . . . . . . . 724 125 . 40 288 192 62 . . 2549 1966 331 . . 749 Explosions 8739 | . 53 . 85 . . 60 1436 79 842 . . 64 . . 937 . 1323 923 . . 130 492 2315 Melee 528 | . . . . . . . . . . . 65 . . . . . . 365 . . . . 98 Ramming 307 | . . . 10 11 . 9 . 4 . . . . 101 . . . . . 72 . . 49 51 Kinetic 17404 | . 42 66 215 . . 39 340 544 724 125 . . 459 517 102 . . 2057 4880 773 1067 854 4600 Thermal 3195 | . 53 . 85 . . 60 292 79 . . . 104 82 . . . 70 1070 . 331 130 90 749 Explosive 4034 | . . . . . . . 877 . 842 . . . . . . . . . . . . . 2315 Electromagnetic 6540 | . 30 71 264 . . 57 557 212 . . 427 527 . . 937 . 1253 780 . . 909 516 . Impact . | . . . . . . . . . . . . . . . . . . . . . . . . Slashing 98 | . . . . . . . . . . . . . . . . . . . . . . . 98 Piercing 430 | . . . . . . . . . . . 65 . . . . . . 365 . . . . . Highest Corruption 76 | . . . . . . . . . . . . 76 . . . . . 14 15 23 23 27 25 Average Corruption 16 | . . . . . . . . . . . . 36 . . . . . 6 14 20 23 23 10 Corruption Purged . | . . . . . . . . . . . . . . . . . . . . . . . . Effects 288 | . . . . . . . . . . . . 46 . . . . . 35 76 18 24 32 57 Message Errors 50 | . . . . . . . . . . . . 10 . . . . . 4 16 2 5 8 5 Matter Fused 69 | . . . . . . . . . . . . 6 . . . . . 11 15 6 7 10 14 Heat Flow Errors 30 | . . . . . . . . . . . . 3 . . . . . 5 9 . 3 3 7 Energy Discharges 27 | . . . . . . . . . . . . 4 . . . . . 3 10 1 2 1 6 Parts Rejected 3 | . . . . . . . . . . . . . . . . . . . 2 . . . 1 Data Loss (minor) 27 | . . . . . . . . . . . . 8 . . . . . 4 6 . 1 1 7 Data Loss (major) 15 | . . . . . . . . . . . . 2 . . . . . 3 3 3 1 1 2 Misfires 9 | . . . . . . . . . . . . 1 . . . . . 2 2 1 . . 3 Alerts 9 | . . . . . . . . . . . . 1 . . . . . 1 3 1 . 1 2 Misdirections 30 | . . . . . . . . . . . . 9 . . . . . 2 9 1 4 2 3 Weapon Failures 19 | . . . . . . . . . . . . 2 . . . . . . 1 3 1 5 7 Overload Shots . | . . . . . . . . . . . . . . . . . . . . . . . . Overflow Damage 332 | . . . . . . . 26 7 22 . . . . . 4 . 17 30 44 . 39 22 121 Projectiles 83 | . . . . . . . . . 5 . . . . . . . . 30 44 . . . 4 Explosions 227 | . . . . . . . 26 7 17 . . . . . 4 . 17 . . . 39 . 117 Melee 22 | . . . . . . . . . . . . . . . . . . . . . . 22 . Knockbacks 36 | . . . . 1 . . . . 7 4 . . 1 1 1 . . 14 6 . . . 1 Impact 3 | . . . . 1 . . . . . . . . 1 . . . . . . . . . 1 Kinetic 32 | . . . . . . . . . 7 4 . . . 1 1 . . 13 6 . . . . Secondary 1 | . . . . . . . . . . . . . . . . . . 1 . . . . . Self-Inflicted Damage 441 | . 9 . 5 . . 28 48 . 20 . . . . . . . 37 11 . . . 126 157 Shots 18 | . 1 . . . . 1 2 . 2 . . . . . . . 5 2 . . . 2 3 Rammed 22 | . . . 3 1 . 1 . 1 . . . . 3 . . . . 1 8 . . 2 2 Targets Rammed 25 | . . . 3 1 . 1 . 1 . . . . 4 . . . . 1 9 . . 2 3 Kicked . | . . . . . . . . . . . . . . . . . . . . . . . . Crushed 3 | . . . . . . . . . . . . . 1 . . . . . 1 . . . 1 Highest Temperature 553 | . 30 36 242 . . 48 246 72 214 180 340 460 192 300 265 . 36 553 382 . 242 216 373 Average Temperature 115 | . 19 22 44 . . 27 97 29 88 93 134 178 99 113 136 . 14 143 105 . 121 84 136 Received Heat Transfer 4053 | . 18 36 90 . . . 252 18 252 . 114 231 12 48 213 . 285 270 444 147 81 171 1371 Effects 37 | . . . . . . . 1 . . . 3 13 . . 4 . . 16 . . . . . Shutdowns 10 | . . . . . . . . . . . . 2 . . . . . 8 . . . . . Energy Bleed 7 | . . . . . . . 1 . . . 1 4 . . . . . 1 . . . . . Interference 8 | . . . . . . . . . . . 2 . . . 4 . . 2 . . . . . Matter Decay 1 | . . . . . . . . . . . . 1 . . . . . . . . . . . Short Circuit 4 | . . . . . . . . . . . . 3 . . . . . 1 . . . . . Damage (major) 6 | . . . . . . . . . . . . 3 . . . . . 3 . . . . . Damage (core) 1 | . . . . . . . . . . . . . . . . . . 1 . . . . . Siege Activations 8 | . . . . . . . . . . . . . . 1 . . . 1 1 1 . . 4 Total Turns 173 | . . . . . . . . . . . . . . 8 . . . 40 34 25 . . 66 Longest Duration 40 | . . . . . . . . . . . . . . 8 . . . 40 34 25 . . 32 Robots Corrupted 20 | . . . . . . . . . . . 4 2 . . 4 . 6 1 . . 3 . . Combat Hostiles 19 | . . . . . . . . . . . 4 2 . . 4 . 6 1 . . 2 . . Parts Fried 56 | . . . . . . . 3 . . . 6 6 . . 10 . 11 6 . . 11 3 . Impact Corruptions 1 | . . . . . . . . . . . . . . . . . . . . . . 1 . Robots Melted . | . . . . . . . . . . . . . . . . . . . . . . . . Combat Hostiles . | . . . . . . . . . . . . . . . . . . . . . . . . Parts Melted . | . . . . . . . . . . . . . . . . . . . . . . . . Heat Transferred 2250 | . 50 . 100 . . 100 200 100 . . . 75 50 . . . 50 675 . 200 100 100 450 Parts Sabotaged . | . . . . . . . . . . . . . . . . . . . . . . . . Parts Stolen . | . . . . . . . . . . . . . . . . . . . . . . . . Parts Stripped . | . . . . . . . . . . . . . . . . . . . . . . . . Power Chain Reactions 12 | . 1 . 1 . . 1 . 1 . . . 1 . . 1 . 1 1 . . 2 2 . Missiles Intercepted . | . . . . . . . . . . . . . . . . . . . . . . . . Alert | -11 -10 -10 -9 -9 -9 -8 -8 -7 -7 -7 -7 -6 -6 -6 -6 -6 -5 -5 -5 -5 -5 -5 -4 ------- Run | Scr Mat Min Mat Min Exi Min Mat Fac Low Low Dat Pro Fac Low Low Zio Pro Fac Ext Cet Arc Hub Fac Peak Influence 1025 | . 50 66 330 108 . 104 549 368 . . . . 445 . . . . 712 309 276 258 512 1025 Initial 215 | . . 16 21 108 . . 34 94 . . . . . . . . . 88 69 . 93 75 215 Average 221 | . 14 59 244 63 . 26 299 220 . . . . 157 . . . . 193 99 121 217 171 535 Maximum Alert Level 3 | . . . 1 . . . 2 1 . . . . 2 . . . . 3 1 1 1 2 3 Low Security (%) 57 | . 100 100 27 100 . 100 30 61 . . . . 66 . . . . 58 80 70 29 76 11 Level 1 29 | . . . 72 . . . 47 38 . . . . 10 . . . . 30 19 29 70 18 36 Level 2 7 | . . . . . . . 22 . . . . . 22 . . . . 8 . . . 5 14 Level 3 6 | . . . . . . . . . . . . . . . . . . 1 . . . . 38 Level 4 . | . . . . . . . . . . . . . . . . . . . . . . . . Level 5 . | . . . . . . . . . . . . . . . . . . . . . . . . High Security . | . . . . . . . . . . . . . . . . . . . . . . . . Max Security . | . . . . . . . . . . . . . . . . . . . . . . . . Squads Dispatched 29 | . . . 2 . . . 3 3 . . . . 1 . . . . 4 3 . . 3 10 Investigation 4 | . . . 2 . . . 2 . . . . . . . . . . . . . . . . Extermination 6 | . . . . . . . . 1 . . . . 1 . . . . 1 . . . . 3 Reinforcement 11 | . . . . . . . 1 . . . . . . . . . . 1 3 . . 3 3 Assault 2 | . . . . . . . . 1 . . . . . . . . . . . . . . 1 Garrison 1 | . . . . . . . . 1 . . . . . . . . . . . . . . . Intercept 5 | . . . . . . . . . . . . . . . . . . 2 . . . . 3 Construction Impeded 4 | . . . . . . . . . . . . . . . . . . . 2 . . . 2 Haulers Reinforced 1 | . . . . . . . . . . . . . . . . . . 1 . . . . . Stealth | -11 -10 -10 -9 -9 -9 -8 -8 -7 -7 -7 -7 -6 -6 -6 -6 -6 -5 -5 -5 -5 -5 -5 -4 --------- Run | Scr Mat Min Mat Min Exi Min Mat Fac Low Low Dat Pro Fac Low Low Zio Pro Fac Ext Cet Arc Hub Fac Distress Signals 14 | . . . . . . . . . . . . . . . . . . 2 4 1 1 2 4 Communications Jammed . | . . . . . . . . . . . . . . . . . . . . . . . . Distress Signals . | . . . . . . . . . . . . . . . . . . . . . . . . Times Spotted 294 | . 2 1 13 . . 4 23 14 18 3 4 5 3 4 8 . 17 31 38 13 19 20 54 Peak Tracking Total 15 | . 1 1 5 . . 4 7 3 11 3 1 4 1 4 4 . 5 5 9 7 1 7 15 Tactical Retreats 26 | . . . . . . . 1 2 4 . . . . . 2 . 2 3 6 1 . 1 4 Traps | -11 -10 -10 -9 -9 -9 -8 -8 -7 -7 -7 -7 -6 -6 -6 -6 -6 -5 -5 -5 -5 -5 -5 -4 ------- Run | Scr Mat Min Mat Min Exi Min Mat Fac Low Low Dat Pro Fac Low Low Zio Pro Fac Ext Cet Arc Hub Fac Traps Triggered 6 | . . . . . . . 1 2 . . . . . . . . . . 3 . . . . Indirectly . | . . . . . . . . . . . . . . . . . . . . . . . . Trap Hack Attempts . | . . . . . . . . . . . . . . . . . . . . . . . . Triggered . | . . . . . . . . . . . . . . . . . . . . . . . . Disarmed 8 | . . . . . . . . . . . . . 8 . . . . . . . . . . Reprogrammed . | . . . . . . . . . . . . . . . . . . . . . . . . Reused . | . . . . . . . . . . . . . . . . . . . . . . . . Traps Extracted . | . . . . . . . . . . . . . . . . . . . . . . . . Installed . | . . . . . . . . . . . . . . . . . . . . . . . . Triggered . | . . . . . . . . . . . . . . . . . . . . . . . . Machines | -11 -10 -10 -9 -9 -9 -8 -8 -7 -7 -7 -7 -6 -6 -6 -6 -6 -5 -5 -5 -5 -5 -5 -4 ---------- Run | Scr Mat Min Mat Min Exi Min Mat Fac Low Low Dat Pro Fac Low Low Zio Pro Fac Ext Cet Arc Hub Fac Machines Disabled 41 | . . . . . . . 3 2 1 . . . 1 1 . . . 6 1 3 2 14 7 Max in Single Turn 13 | . . . . . . . 2 2 1 . . . 1 1 . . . 4 1 1 1 13 4 Garrison Access 3 | . . . . . . . . 1 . . . . 1 . . . . 1 . . . . . Network Hub 1 | . . . . . . . . . . . . . . . . . . . . . . 1 . Machines Sabotaged . | . . . . . . . . . . . . . . . . . . . . . . . . Garrisons Compromised . | . . . . . . . . . . . . . . . . . . . . . . . . Overloaded Fab Kills . | . . . . . . . . . . . . . . . . . . . . . . . . Fab Network Shutdowns 3 | . . . . . . . . . . . . . 1 . . . . 1 . . . . 1 Hacking | -11 -10 -10 -9 -9 -9 -8 -8 -7 -7 -7 -7 -6 -6 -6 -6 -6 -5 -5 -5 -5 -5 -5 -4 --------- Run | Scr Mat Min Mat Min Exi Min Mat Fac Low Low Dat Pro Fac Low Low Zio Pro Fac Ext Cet Arc Hub Fac Machines Accessed 39 | . 1 . 1 1 1 . 4 3 . . 3 . 6 . . . . 6 8 1 . 2 2 Terminals 28 | . 1 . 1 . . . 4 3 . . . . 3 . . . . 4 8 1 . 2 1 Fabricators 3 | . . . . . . . . . . . . . 1 . . . . 1 . . . . 1 Repair Stations 1 | . . . . . . . . . . . . . 1 . . . . . . . . . . Recycling Units . | . . . . . . . . . . . . . . . . . . . . . . . . Scanalyzers . | . . . . . . . . . . . . . . . . . . . . . . . . Garrison Access 2 | . . . . . . . . . . . . . 1 . . . . 1 . . . . . Total Hacks 159 | . 9 . 3 1 1 . 10 7 . . 21 . 36 . . . . 31 20 3 . 6 11 Successful 114 | . 3 . 2 1 1 . 4 2 . . 21 . 30 . . . . 28 16 1 . 1 4 Failed 44 | . 5 . 1 . . . 6 5 . . . . 6 . . . . 3 4 2 . 5 7 Catastrophic 5 | . . . . . . . 1 . . . . . . . . . . . . . . 2 2 Database Lockouts 1 | . 1 . . . . . . . . . . . . . . . . . . . . . . Manual 70 | . 9 . 2 . . . 5 1 . . . . 14 . . . . 16 11 1 . 5 6 Terminals 110 | . 9 . 3 . . . 10 7 . . . . 21 . . . . 25 20 3 . 6 6 Fabricators 22 | . . . . . . . . . . . . . 12 . . . . 5 . . . . 5 Repair Stations 2 | . . . . . . . . . . . . . 2 . . . . . . . . . . Recycling Units . | . . . . . . . . . . . . . . . . . . . . . . . . Scanalyzers . | . . . . . . . . . . . . . . . . . . . . . . . . Garrison Access 2 | . . . . . . . . . . . . . 1 . . . . 1 . . . . . Terminal Hacks 80 | . 2 . 2 1 1 . 3 2 . . 21 . 12 . . . . 19 14 1 . 1 1 Record 8 | . . . . . 1 . . . . . 6 . . . . . . 1 . . . . . Part Schematic 16 | . 1 . . . . . . . . . 8 . 5 . . . . 2 . . . . . Robot Schematic 11 | . . . . . . . . . . . 7 . . . . . . 4 . . . . . Robot Analysis 1 | . 1 . . . . . . . . . . . . . . . . . . . . . . Prototype ID Bank 1 | . . . . . . . . . . . . . . . . . . . 1 . . . . Open Door 6 | . . . . 1 . . . . . . . . . . . . . 1 3 1 . . . Level Access Points 2 | . . . . . . . . 1 . . . . . . . . . . . . . 1 . Branch Access Points 4 | . . . 1 . . . . . . . . . 1 . . . . 1 . . . . 1 Emergency Access Points 1 | . . . 1 . . . . . . . . . . . . . . . . . . . . Terminal Index 1 | . . . . . . . . . . . . . . . . . . . 1 . . . . Alert Level 7 | . . . . . . . 1 1 . . . . . . . . . 3 2 . . . . Unreport Threat 7 | . . . . . . . 1 . . . . . . . . . . 4 2 . . . . Locate Traps 3 | . . . . . . . . . . . . . 2 . . . . 1 . . . . . Disarm Traps 3 | . . . . . . . . . . . . . 3 . . . . . . . . . . Dispatch Records 1 | . . . . . . . . . . . . . . . . . . . 1 . . . . Recall Investigation 1 | . . . . . . . 1 . . . . . . . . . . . . . . . . Recall Extermination 1 | . . . . . . . . . . . . . . . . . . . 1 . . . . Recall Reinforcements 1 | . . . . . . . . . . . . . . . . . . . 1 . . . . Hauler Manifests 2 | . . . . . . . . . . . . . 1 . . . . 1 . . . . . Registered Components 1 | . . . . . . . . . . . . . . . . . . . 1 . . . . Zone Layout 2 | . . . . . . . . . . . . . . . . . . 1 1 . . . . Fabricator Hacks 17 | . . . . . . . . . . . . . 10 . . . . 4 . . . . 3 Network Status 1 | . . . . . . . . . . . . . 1 . . . . . . . . . . Load Schematic 7 | . . . . . . . . . . . . . 4 . . . . 2 . . . . 1 Build 9 | . . . . . . . . . . . . . 5 . . . . 2 . . . . 2 Repair Station Hacks 2 | . . . . . . . . . . . . . 2 . . . . . . . . . . Scan Component 1 | . . . . . . . . . . . . . 1 . . . . . . . . . . Repair 1 | . . . . . . . . . . . . . 1 . . . . . . . . . . Recycling Unit Hacks . | . . . . . . . . . . . . . . . . . . . . . . . . Scanalyzer . | . . . . . . . . . . . . . . . . . . . . . . . . Garrison Access Hacks 2 | . . . . . . . . . . . . . 1 . . . . 1 . . . . . Seal Access 2 | . . . . . . . . . . . . . 1 . . . . 1 . . . . . Unauthorized Hacks 13 | . 1 . . . . . 1 . . . . . 5 . . . . 4 2 . . . . Terminals 10 | . 1 . . . . . 1 . . . . . 3 . . . . 3 2 . . . . Track 1 | . . . . . . . . . . . . . 1 . . . . . . . . . . Assimilate 1 | . . . . . . . . . . . . . . . . . . 1 . . . . . Botnet 5 | . 1 . . . . . 1 . . . . . 1 . . . . 1 1 . . . . Operators 3 | . . . . . . . . . . . . . 1 . . . . 1 1 . . . . Fabricators 3 | . . . . . . . . . . . . . 2 . . . . 1 . . . . . Prioritize 2 | . . . . . . . . . . . . . 1 . . . . 1 . . . . . Siphon 1 | . . . . . . . . . . . . . 1 . . . . . . . . . . Repair Stations . | . . . . . . . . . . . . . . . . . . . . . . . . Recycling Units . | . . . . . . . . . . . . . . . . . . . . . . . . Scanalyzers . | . . . . . . . . . . . . . . . . . . . . . . . . Garrison Access . | . . . . . . . . . . . . . . . . . . . . . . . . Data Cores Recovered . | . . . . . . . . . . . . . . . . . . . . . . . . Used . | . . . . . . . . . . . . . . . . . . . . . . . . Hacking Detections 20 | . 1 . 1 . . . 4 2 . . . . 3 . . . . 3 3 . . 2 1 Full Trace Events 2 | . . . 1 . . . 1 . . . . . . . . . . . . . . . . Feedback Events . | . . . . . . . . . . . . . . . . . . . . . . . . Feedback Blocked . | . . . . . . . . . . . . . . . . . . . . . . . . Robot Schematics Acquired 11 | . . . . . . . . . . . 7 . . . . . . 4 . . . . . Robots Built . | . . . . . . . . . . . . . . . . . . . . . . . . Matter . | . . . . . . . . . . . . . . . . . . . . . . . . Time . | . . . . . . . . . . . . . . . . . . . . . . . . Total Robot Build Rating . | . . . . . . . . . . . . . . . . . . . . . . . . Part Schematics Acquired 15 | . 1 . . . . . . . . . 8 . 5 . . . . 1 . . . . . Parts Built 13 | . . . . . . . . . . . . . 8 . . . . 1 . . . . 4 Matter 1591 | . . . . . . . . . . . . . 783 . . . . 384 . . . . 424 Time 540 | . . . . . . . . . . . . . 266 . . . . 204 . . . . 70 Total Part Build Rating 72 | . . . . . . . . . . . . . 40 . . . . 8 . . . . 24 Parts Repaired 1 | . . . . . . . . . . . . . 1 . . . . . . . . . . Time 20 | . . . . . . . . . . . . . 20 . . . . . . . . . . Parts Recycled . | . . . . . . . . . . . . . . . . . . . . . . . . Recycled Matter . | . . . . . . . . . . . . . . . . . . . . . . . . Retrieved Matter . | . . . . . . . . . . . . . . . . . . . . . . . . Retrieved Components . | . . . . . . . . . . . . . . . . . . . . . . . . Parts Scanalyzed . | . . . . . . . . . . . . . . . . . . . . . . . . Part Schematics Acquired . | . . . . . . . . . . . . . . . . . . . . . . . . Parts Damaged . | . . . . . . . . . . . . . . . . . . . . . . . . Bothacking | -11 -10 -10 -9 -9 -9 -8 -8 -7 -7 -7 -7 -6 -6 -6 -6 -6 -5 -5 -5 -5 -5 -5 -4 ------------ Run | Scr Mat Min Mat Min Exi Min Mat Fac Low Low Dat Pro Fac Low Low Zio Pro Fac Ext Cet Arc Hub Fac Used RIF Installer . | . . . . . . . . . . . . . . . . . . . . . . . . Robots Hacked . | . . . . . . . . . . . . . . . . . . . . . . . . Non-combat . | . . . . . . . . . . . . . . . . . . . . . . . . Combat . | . . . . . . . . . . . . . . . . . . . . . . . . Robot Hacks Applied . | . . . . . . . . . . . . . . . . . . . . . . . . Relay Couplers Released 2 | . . . . . . . . 2 . . . . . . . . . . . . . . . Machine Destruction 2 | . . . . . . . . 2 . . . . . . . . . . . . . . . Robots Rewired 7 | . . . . . . . . . 1 . . . . . . . . . 6 . . . . Allies Hacked 1 | . . . . . . . . . . . . . . . . . . . 1 . . . . Hacks Repelled . | . . . . . . . . . . . . . . . . . . . . . . . . Allies | -11 -10 -10 -9 -9 -9 -8 -8 -7 -7 -7 -7 -6 -6 -6 -6 -6 -5 -5 -5 -5 -5 -5 -4 -------- Run | Scr Mat Min Mat Min Exi Min Mat Fac Low Low Dat Pro Fac Low Low Zio Pro Fac Ext Cet Arc Hub Fac Total Allies 15 | . . . . . . . . . 1 . . . . . . 3 . 1 10 . . . . Largest Group 5 | . . . . . . . . . 1 . . . . . . 3 3 1 5 1 1 . . Highest-Rated Group 156 | . . . . . . . . . 30 . . . . . . 87 87 26 156 156 142 . . Highest-Rated Ally 156 | . . . . . . . . . 30 . . . . . . 47 47 26 156 156 142 . . Total Orders . | . . . . . . . . . . . . . . . . . . . . . . . . Ally Attacks 93 | . . . . . . . . . 9 . . . . . . . 12 . 42 29 1 . . Total Damage 1808 | . . . . . . . . . 69 . . . . . . . 323 . 838 555 23 . . Kills 10 | . . . . . . . . . . . . . . . . . . . 5 5 . . . Allies Corrupted . | . . . . . . . . . . . . . . . . . . . . . . . . Allies Melted . | . . . . . . . . . . . . . . . . . . . . . . . . Intel | -11 -10 -10 -9 -9 -9 -8 -8 -7 -7 -7 -7 -6 -6 -6 -6 -6 -5 -5 -5 -5 -5 -5 -4 ------- Run | Scr Mat Min Mat Min Exi Min Mat Fac Low Low Dat Pro Fac Low Low Zio Pro Fac Ext Cet Arc Hub Fac Robot Analysis Total 116 | . 1 . . . . . . . . . 115 . . . . . . . . . . . . Derelict Logs Recovered 8 | . . . . 2 . . . . 1 1 . . . 2 . 2 . . . . . . . Drone Launches . | . . . . . . . . . . . . . . . . . . . . . . . . Drone Recoveries . | . . . . . . . . . . . . . . . . . . . . . . . . Exploration | -11 -10 -10 -9 -9 -9 -8 -8 -7 -7 -7 -7 -6 -6 -6 -6 -6 -5 -5 -5 -5 -5 -5 -4 ------------- Run | Scr Mat Min Mat Min Exi Min Mat Fac Low Low Dat Pro Fac Low Low Zio Pro Fac Ext Cet Arc Hub Fac Turns Passed 15240 | . 122 53 376 678 396 75 533 994 938 482 409 946 896 368 338 1260 558 1529 1654 297 387 485 1466 Spaces Moved 7034 | 1 89 32 241 420 245 39 245 575 466 286 177 476 319 203 168 781 305 604 619 99 100 136 408 Core . | . . . . . . . . . . . . . . . . . . . . . . . . Treads 6741 | . . . 70 420 245 39 245 575 466 286 177 476 319 203 168 781 305 604 619 99 100 136 408 Legs 122 | 1 89 32 . . . . . . . . . . . . . . . . . . . . . Wheels 171 | . . . 171 . . . . . . . . . . . . . . . . . . . . Hover . | . . . . . . . . . . . . . . . . . . . . . . . . Flight . | . . . . . . . . . . . . . . . . . . . . . . . . Fastest Speed 100 | 120 120 120 100 160 160 160 160 160 160 162 162 160 160 160 160 160 160 160 160 160 260 260 162 Average Speed 175 | 120 120 120 117 160 160 160 160 160 161 162 162 165 160 160 160 160 160 190 223 222 260 262 232 Slowest Speed 360 | 120 120 120 160 160 160 160 160 160 162 162 162 360 160 160 160 160 160 260 360 360 260 263 360 Overloaded Moves . | . . . . . . . . . . . . . . . . . . . . . . . . Propulsion Burnouts . | . . . . . . . . . . . . . . . . . . . . . . . . Robots Hopped . | . . . . . . . . . . . . . . . . . . . . . . . . Cave-ins Triggered . | . . . . . . . . . . . . . . . . . . . . . . . . Exploration Rate (%) 41 | 2 23 17 26 80 54 15 36 16 70 52 82 63 10 46 36 74 44 19 79 58 71 19 11 Regions Visited 23 Branch Regions 16 Pre-discovered Areas 27 | . . . . . 1 . . . . 1 22 . . . . 3 . . . . . . . Known Exits Taken 6 | . . . 1 . . . 1 . . . . 1 1 . . . . 1 . . . 1 . Unknown Exits Taken 17 | 1 1 1 . 1 1 1 . 1 1 1 1 . . 1 1 1 1 . 1 1 1 . . Scrap Searched 15 | . . . . . . 1 . . 2 3 . 2 . 2 3 2 . . . . . . . Spaces Dug 5 | . . . . . . . . . . . . . 5 . . . . . . . . . . Terrain Destroyed 490 | . 2 . 4 . . 4 65 15 16 . . 1 7 1 11 . 9 49 12 2 8 166 118 Melee 5 | . . . . . . . . . . . . . 5 . . . . . . . . . . Projectile 60 | . . . . . . . . . . . . 1 2 1 . . . 12 12 2 8 14 8 AOE 425 | . 2 . 4 . . 4 65 15 16 . . . . . 11 . 9 37 . . . 152 110 Terrain Rammed . | . . . . . . . . . . . . . . . . . . . . . . . . Walls Destroyed . | . . . . . . . . . . . . . . . . . . . . . . . . Machines Disabled . | . . . . . . . . . . . . . . . . . . . . . . . . Actions | -11 -10 -10 -9 -9 -9 -8 -8 -7 -7 -7 -7 -6 -6 -6 -6 -6 -5 -5 -5 -5 -5 -5 -4 --------- Run | Scr Mat Min Mat Min Exi Min Mat Fac Low Low Dat Pro Fac Low Low Zio Pro Fac Ext Cet Arc Hub Fac Total 8857 | . 95 36 294 428 250 43 342 616 619 294 260 589 674 224 199 795 348 835 748 137 144 190 697 Wait 816 | . . . . 2 . . 34 . 115 . 34 50 295 5 . 3 17 127 17 7 . 6 104 Move 7011 | . 88 31 240 419 244 38 244 574 465 285 176 475 318 202 167 780 304 603 618 98 99 135 408 Hop . | . . . . . . . . . . . . . . . . . . . . . . . . Pick Up 99 | . 2 . 9 1 3 . 11 6 1 1 8 17 9 3 2 4 . 5 1 . . 4 12 Fast Attach 65 | . 1 . 2 1 . . 4 2 1 2 3 9 6 2 1 2 . 3 9 4 . 5 8 Attach 51 | . . . 5 . . . 2 2 2 . 3 2 1 . . . . 10 5 . 2 . 17 Detach 13 | . . . . 1 . . 1 . . 1 . 2 2 . . . . 1 1 2 . 1 1 Swap 58 | . . . 5 1 1 . 5 4 3 . 6 8 11 . 2 1 . 7 1 1 . . 2 Drop 73 | . . . 9 2 2 . 9 8 2 . 9 6 11 1 . 5 . 3 . . . . 6 Fire 582 | . 4 5 21 . . 4 32 19 18 5 20 20 10 11 27 . 27 66 56 25 43 36 133 Melee 20 | . . . . . . . . . . . 1 . 7 . . . . 9 . . . . 3 Ram 4 | . . . 3 . . . . . . . . . . . . . . . . . . 1 . Kick . | . . . . . . . . . . . . . . . . . . . . . . . . Crush 22 | . . . . 1 . 1 . 1 . . . . 4 . . . . 1 9 . . 2 3 Escape Stasis 6 | . . . . . . . . . . . . . . . . . . . 6 . . . . Rewire 37 | . . . . . . . . . 12 . . . . . . . . . 25 . . . . Trap . | . . . . . . . . . . . . . . . . . . . . . . . . Miscellaneous . | . . . . . . . . . . . . . . . . . . . . . . . . Route ------- -11/Scrapyard -10/Materials -10/Mines -9/Materials (discovered 3 exits: *Min / *Sto x2) -9/Mines (discovered 2 exits: *Mat / *Exi) -9/Exiles -8/Mines (discovered 2 exits: *Mat x2) -8/Materials (discovered 2 exits: *Fac x2) -7/Factory (discovered 5 exits: *Fac x4 / [*Low]) -7/Lower Caves -7/Lower Caves -7/Data Miner -6/Proximity Caves -6/Factory (discovered 2 exits: *Low x2) -6/Lower Caves -6/Lower Caves -6/Zion -5/Proximity Caves -5/Factory (discovered 4 exits: Upp x2 / *Ext x2) -5/Extension (discovered 2 exits: *Fac / *Cet) -5/Cetus -5/Archives (discovered 2 exits: *Fac / *Hub) -5/Hub_04(d) (discovered 4 exits: *Fac x4) -4/Factory (discovered 3 exits: Upp x2 / Arm) History --------- Turn | Location | Event 1 | -11/Scrapyard | Discovered new exit (range 0) 1 | -11/Scrapyard | Entered Materials 33 | -10/Materials | Central database locked down 112 | -10/Materials | Discovered new exit (range 7) 123 | -10/Materials | Entered Mines 164 | -10/Mines | Discovered new exit (range 11) 176 | -10/Mines | Entered Materials 176 | -9/Materials | Evolved 2 slots: Propulsion x2 293 | -9/Materials | Discovered new exit (range 12) 311 | -9/Materials | Build established: Mutant 336 | -9/Materials | Destroyed 11 combat bots 381 | -9/Materials | Identified exit to Mines 381 | -9/Materials | Identified exit to Storage 552 | -9/Materials | Entered Mines 601 | -9/Mines | Received a Rocket Launcher from a helpful Derelict 794 | -9/Mines | Learned Materials security intel 794 | -9/Mines | Discovered new exit (range 8) 842 | -9/Mines | Deemed a non-threat by the Exiles lab entrance 947 | -9/Mines | Met a Derelict who couldn't figure out how to use a Trap Extractor 1102 | -9/Mines | Learned location of 1 exit from Materials 1224 | -9/Mines | Discovered new exit (range 5) 1230 | -9/Mines | Entered Exiles 1270 | -9/Exiles | Met 8R-AWN 1296 | -9/Exiles | Met EX-HEX 1373 | -9/Exiles | Met EX-DEC 1562 | -9/Exiles | Learned location of Zion (-6) 1607 | -9/Exiles | Discovered new exit (range 14) 1626 | -9/Exiles | Entered Mines 1657 | -8/Mines | Discovered new exit (range 8) 1671 | -8/Mines | Discovered new exit (range 15) 1701 | -8/Mines | Entered Materials 1701 | -8/Materials | Evolved 2 slots: Utility x2 1702 | -8/Materials | Identified exit to Factory 2179 | -8/Materials | Discovered exit to Factory (range 16) 2234 | -8/Materials | Entered Factory 2234 | -7/Factory | Evolved 2 slots: Propulsion x1, Utility x1 2292 | -7/Factory | Identified exit to Factory 2624 | -7/Factory | Garrison activated, responded to threat 2989 | -7/Factory | Build established: Scavenger-Mutant 3180 | -7/Factory | Discovered new exit (range 19) 3228 | -7/Factory | Entered Lower Caves 3405 | -7/Lower Caves | Learned 4 Factory zone layouts 3610 | -7/Lower Caves | Attracted the attention of an 0b10 outpost 3652 | -7/Lower Caves | Lost 3 parts (2u1w) 3665 | -7/Lower Caves | Destroyed 11 combat bots 4044 | -7/Lower Caves | Discovered new exit (range 5) 4166 | -7/Lower Caves | Entered another Lower Caves area 4614 | -7/Lower Caves | Discovered new exit (range 12) 4625 | -7/Lower Caves | Learned location of Extension (-5) 4648 | -7/Lower Caves | Entered Data Miner 4648 | -7/Data Miner | Discovered new exit (range 6) 4673 | -7/Data Miner | Met Data Miner 4712 | -7/Data Miner | Learned location of Section 7 (-2) 4712 | -7/Data Miner | Acquired the access code to Warlord's prototype stash 4742 | -7/Data Miner | Received God Mode back door access code from Data Miner 4779 | -7/Data Miner | Destroyed Data Miner 4781 | -7/Data Miner | Interfaced with the Data Conduit 4784 | -7/Data Miner | Found Prototype Hackware 4787 | -7/Data Miner | Found Prototype Hackware 4940 | -7/Data Miner | Lost 4 parts (3n1w) 5057 | -7/Data Miner | Entered Proximity Caves 5079 | -6/Proximity Caves | Spotted B-75 Beast 5204 | -6/Proximity Caves | Destroyed B-75 Beast 5226 | -6/Proximity Caves | Lost 5 parts (4n1u) 5260 | -6/Proximity Caves | System corruption reached 10% 5723 | -6/Proximity Caves | System corruption reached 30% 5986 | -6/Proximity Caves | Discovered exit to Factory (range 6) 6003 | -6/Proximity Caves | Entered Factory 6003 | -6/Factory | Evolved 2 slots: Power x1, Propulsion x1 6005 | -6/Factory | Loaded intel: 308 machine locations 6045 | -6/Factory | Repaired Broken Lightning Gun 6159 | -6/Factory | Identified Deep Network Scanner 6161 | -6/Factory | Identified Quantum Router 6162 | -6/Factory | Identified exit to Lower Caves 6409 | -6/Factory | Fabricated Hvy. Treads (x2) 6462 | -6/Factory | Fabricated Hvy. Treads (x2) 6475 | -6/Factory | Build established: Wizard-Mutant 6487 | -6/Factory | Fabricated Cargo Storage Unit (x1) 6529 | -6/Factory | Fabricated Powered Armor (x2) 6600 | -6/Factory | Local fabrication network quarantined 6661 | -6/Factory | Fabricated Exp. Terrain Scan Processor (x1) 6899 | -6/Factory | Entered Lower Caves 6900 | -6/Lower Caves | Encountered a Warlord checkpoint 6909 | -6/Lower Caves | Learned Factory stockpile data 6920 | -6/Lower Caves | Learned Factory stockpile data 6959 | -6/Lower Caves | Spotted B-75 Beast 7062 | -6/Lower Caves | Destroyed B-75 Beast 7223 | -6/Lower Caves | Found Alien Artifact 7223 | -6/Lower Caves | Identified Dimensional Node Initializer 7223 | -6/Lower Caves | Initialized slip node 7256 | -6/Lower Caves | Discovered new exit (range 7) 7267 | -6/Lower Caves | Entered another Lower Caves area 7372 | -6/Lower Caves | Spotted B-75 Beast 7425 | -6/Lower Caves | Destroyed B-75 Beast 7602 | -6/Lower Caves | Discovered new exit (range 3) 7605 | -6/Lower Caves | Entered Zion 7911 | -6/Zion | Learned Factory interactive machine intel 7973 | -6/Zion | Acquired unknown access codes intercepted by a Zionite 8084 | -6/Zion | Given the Hacking Drone Bay 8109 | -6/Zion | Found CR-A16's Pointy Stick 8272 | -6/Zion | Received a visual enhancement algorithm 8300 | -6/Zion | Learned Factory emergency access door positions 8418 | -6/Zion | Gained Derelict followers 8838 | -6/Zion | Discovered new exit (range 16) 8865 | -6/Zion | Entered Proximity Caves 8865 | -5/Proximity Caves | Accompanied by 3 allies 9072 | -5/Proximity Caves | Attracted the attention of an 0b10 checkpoint 9412 | -5/Proximity Caves | Discovered new exit (range 8) 9423 | -5/Proximity Caves | Entered Factory 9423 | -5/Factory | Evolved 2 slots: Utility x1, Weapon x1 9426 | -5/Factory | Loaded intel: 280 machine locations 9427 | -5/Factory | Loaded intel: 48 interactive machine locations 9887 | -5/Factory | Fabricated Exp. Terrain Scanner? 9925 | -5/Factory | Local fabrication network quarantined 9967 | -5/Factory | Identified exit to Upper Caves 9967 | -5/Factory | Identified exit to Extension 10134 | -5/Factory | Found Mni. Smartbomb Launcher 10141 | -5/Factory | Found Mni. Smartbomb Launcher 10241 | -5/Factory | Intercept squad dispatched 10262 | -5/Factory | Spotted Tracker 10279 | -5/Factory | Destroyed Tracker 10297 | -5/Factory | Spotted Combat Programmer 10341 | -5/Factory | Destroyed Combat Programmer 10368 | -5/Factory | Lost 5 parts (2n1u2w) 10621 | -5/Factory | Build established: Wizard-Gunner 10811 | -5/Factory | System corruption reached 10% 10952 | -5/Factory | Entered Extension 10952 | -5/Extension | Accompanied by 1 ally 10953 | -5/Extension | Loaded intel: 33 machine locations 11347 | -5/Extension | Rescued a captive Derelict 11348 | -5/Extension | Rescued a captive Derelict 11434 | -5/Extension | Rescued a captive Derelict 11610 | -5/Extension | Build established: Wizard-Mutant 11768 | -5/Extension | Spotted B-75 Beast 11788 | -5/Extension | Destroyed B-75 Beast 11797 | -5/Extension | Spotted B-75 Beast 11805 | -5/Extension | Destroyed B-75 Beast 11881 | -5/Extension | Lost 5 parts (1p2n2w) 12027 | -5/Extension | Disrupted transfer network 12028 | -5/Extension | Core integrity fell below 50% 12095 | -5/Extension | Build established: Wizard-Gunner 12176 | -5/Extension | Destroyed 8 combat bots 12306 | -5/Extension | Rescued A7 12566 | -5/Extension | Build established: Wizard-Mutant 12580 | -5/Extension | Discovered new exit (range 10) 12582 | -5/Extension | Discovered new exit (range 6) 12606 | -5/Extension | Entered Cetus 12606 | -5/Cetus | Accompanied by 1 ally (A7) 12607 | -5/Cetus | Loaded intel: 24 machine locations 12611 | -5/Cetus | Acquired a Cetus Manufacturing Module code from A7 12640 | -5/Cetus | Spotted Cetus Guard 12640 | -5/Cetus | Spotted Cetus Guard 12642 | -5/Cetus | Spotted Cetus Guard 12649 | -5/Cetus | Spotted Cetus Guard 12653 | -5/Cetus | Allies destroyed Cetus Guard 12661 | -5/Cetus | Allies destroyed Cetus Guard 12665 | -5/Cetus | Destroyed Cetus Guard 12773 | -5/Cetus | Escorted A7 to Cetus Mainframe 12788 | -5/Cetus | Started Cetus Manufacturing Module 12801 | -5/Cetus | Cetus Manufacturing Module disabled 12837 | -5/Cetus | Lost 3 parts (1u2w) 12859 | -5/Cetus | Discovered new exit (range 16) 12903 | -5/Cetus | Entered Archives 12903 | -5/Archives | Accompanied by 1 ally (A7) 12904 | -5/Archives | Loaded intel: 8 machine locations 12908 | -5/Archives | Received a hacking code to weaken MAIN.C 13083 | -5/Archives | Discovered new exit (range 16) 13130 | -5/Archives | Discovered new exit (range 15) 13286 | -5/Archives | Build established: Hacker-Mutant 13290 | -5/Archives | Entered Hub_04(d) 13291 | -5/Hub_04(d) | Loaded intel: 112 machine locations 13476 | -5/Hub_04(d) | Identified exit to Factory 13750 | -5/Hub_04(d) | Network Hub disabled 13758 | -5/Hub_04(d) | Spotted Lightning 13761 | -5/Hub_04(d) | Spotted Lightning 13762 | -5/Hub_04(d) | Spotted Lightning 13775 | -5/Hub_04(d) | Entered Factory 13775 | -4/Factory | Evolved 2 slots: Propulsion x2 13777 | -4/Factory | Loaded intel: 244 machine locations 13889 | -4/Factory | Spotted B-86 Titan 13919 | -4/Factory | Build established: Scavenger-Tank 14000 | -4/Factory | Spotted B-86 Titan 14051 | -4/Factory | Destroyed B-86 Titan 14232 | -4/Factory | Destroyed B-86 Titan 14259 | -4/Factory | Lost 3 parts (2n1u) 14308 | -4/Factory | System corruption reached 10% 14386 | -4/Factory | Lost 7 parts (2p3n2w) 14435 | -4/Factory | Found Quantum Capacitor 14592 | -4/Factory | Fabricated Hvy. Treads (x2) 14615 | -4/Factory | Build established: Hacker-Mutant 14665 | -4/Factory | Fabricated Hvy. Treads (x2) 14680 | -4/Factory | Local fabrication network quarantined 14829 | -4/Factory | Identified exit to Upper Caves 14829 | -4/Factory | Identified exit to Armory 15025 | -4/Factory | First assault squad dispatched 15196 | -4/Factory | Intercept squad dispatched 15222 | -4/Factory | Spotted Tracker 15223 | -4/Factory | Spotted Tracker 15225 | -4/Factory | Spotted Combat Programmer 15227 | -4/Factory | Core integrity fell below 50% 15232 | -4/Factory | Core integrity fell below 20% 15241 | -4/Factory | Destroyed by Tracker with Linked Autogun Last Messages --------------- 15216_ Hvy. Treads destroyed. 15216_ Destroyed Hvy. Treads. 15219_ Lrn. Missile Launcher destroyed. 15221_ Lyr. Medium Armor Plating destroyed. 15222_ The unstable cave ceiling collapses. 15223_ Destroyed Imp. Treads. 15224_ Hvy. Treads destroyed. 15225_ Imp. Ion Engine destroyed. 15225_ Hvy. Neutron Cannon destroyed. 15226_ Penetrated by EMDS Slug. 15228_ Cargo Storage Unit destroyed. 15228_ Penetrated by EMDS Slug. 15234_ B-60 Warrior Imp. Medium Armor Plating severed. 15235_ Penetrated by EMDS Slug. 15239_ System corrupted: Heat flow error (+221). 15239_ Activated siege mode. 15239_ Phasing Sabre destroyed. 15239_ Adv. Heat Sink destroyed. 15241_ Hvy. Treads destroyed. 15241_ Penetrated by EMDS Slug. Map ----- +----------------------------------------------------+ | | | | | | | ?????????????????????????????????????????????????? | | ?????????????????????????????????????????????????? | | ????????????????????"?"?"?"?"?"??????????????????? | | ????????????????????"?"?"?"?"?"??????????????????? | | ????????????????????"?"?"?"?"?"??????????????????? | | ????????????????????"?"?"?"?"?"??????????????????? | | ????????????????????"?"?"?"?"?"??????????????????? | | ????????????????????"?"?" "?"?"??????????????????? | | ????????????????????"?"?" "?"?"??????????????????? | | ????"""G"""?????????"?"?" "?"?"??????????????????? | | ????"""?"""?????????"?"?" "?"?"??????????????????? | | ????????????????????????? ???????????????????????? | | ????"""?"""???????????###;###????????????????????? | | ????"""?"""???????????# ^^ #????###?????????????? | | ????"""?"""???????????#^ #??? ??????????????? | | ??????????????????????# #?? """?"""?????????? | | ?????????????????????##g +?= """?"""?????????? | | ?????????????????????? p # """?"""?????????? | | ?????????????????????##ggg^ # ?????????????????? | | ???????????###+####### g ##+###?????????????? | | ?????????? / ! /! #?????????????? | | ????????????? ![%![ #?????????????? | | ????????????"""? """ /[@!! ! #?"""?"""?????? | | ??????????"""""?""""" !!!b* ! ; """?"""?????? | | ??????????"""""?""""" !!]! # """?"""?????? | | ???????????????? ??????????? | | ????????????""" """ #?????????? | | ??????????""""" """"" % g ????????? | | ??????????"""""?""""" %%" g g ?????????? | | ?????????????????? #! " ????????? | | ?????????????????? % % ????????? | | ?????????????????#### s ???????!? | | ???????????????????? ##+######???????????? | | ???????????????????? # ???????????????????? | | ??????????????????? ?"""???????????????? | | ??????????????????? s% # ?"R"???????????????? | | ????????????????????? % ?"?"???????????????? | | ??????????????????????+R #????????????????????? | | ??????????????????????# #????????????????????? | | ??????????????????????# #????????????????????? | | ??????????????????????# #????????????????????? | | "?????????????????????# #????????????????????? | | "?????????????????????# #????????????????????? | | "?????????????????????# #????????????????""""? | | ??????????????????????# #????????????????""""? | | ??????????????????????# #????????????????""""? | | ??????????????????????# #????????????????""""? | +----------------------------------------------------+ Best States ------------- Heat Dissipation 74 Energy Generation 41 Energy Capacity 615 Matter Stores 300 Matter Capacity 300 Sight Range 20 Terrain Scan Density 10 EM Shielding 2 Armor Coverage 1200 Resistance: KI 20 Resistance: TH 35 Resistance: EX 20 Resistance: EM 20 Resistance: I 20 Resistance: S 20 Resistance: P 20 Thermal Conversion 30 Evasion (%) 55 Targeting Accuracy 8 Recoil Reduction 8 Kinecelleration 30 Offensive Hacking 46 Defensive Hacking 25 Item Schematics ----------------- Cargo Storage Unit | -10/Materials | Hacked Combat Drone Bay | -7/Data Miner | Free Lgt. Regenerative Plating | -7/Data Miner | Free Exp. Flexi-carbon Leg | -7/Data Miner | Free Exp. Sensor Array | -7/Data Miner | Free Exp. Terrain Scan Processor | -7/Data Miner | Free Tactical Coordination Suite | -7/Data Miner | Free Exp. ECM Suite | -7/Data Miner | Free Exp. Terrain Scanner | -7/Data Miner | Free Hvy. Treads | -6/Factory | Hacked Adv. Hacking Suite | -6/Factory | Hacked Hvy. Armor Plating | -6/Factory | Hacked Powered Armor | -6/Factory | Hacked Imp. Weapon Cycler | -6/Factory | Hacked Arm. Heavy Treads | -5/Factory | Hacked Robot Schematics ------------------ S-27 Virus | -7/Data Miner | Free G-50 Soldier | -7/Data Miner | Free G-67 Veteran | -7/Data Miner | Free X-72 Disruptor | -7/Data Miner | Free H-66 Slayer | -7/Data Miner | Free I-36 Angel | -7/Data Miner | Free I-47 Archangel | -7/Data Miner | Free P-70 Sage | -5/Factory | Hacked P-60 Hacker | -5/Factory | Hacked O-24 Administrator | -5/Factory | Hacked O-16 Technician | -5/Factory | Hacked Fabricated ------------ Hvy. Treads | x2 | -6/Factory Hvy. Treads | x2 | -6/Factory Cargo Storage Unit | x1 | -6/Factory Powered Armor | x2 | -6/Factory Exp. Terrain Scan Processor | x1 | -6/Factory Exp. Terrain Scanner | x1 | -5/Factory Hvy. Treads | x2 | -4/Factory Hvy. Treads | x2 | -4/Factory Alien Tech Used ----------------- Dimensional Node Initializer Achievements -------------- None Challenges ------------ None Game ------ Seed DisruptionDecoySuite Manual? 0 Play Time 01:43:43 Cumulative 335.2 hours Start 2021.04.09 @ 08:54:00 End 2021.04.09 @ 23:13:49 Sessions 5 Manual Loads 0 Difficulty Adventurer Special Mode None Game No. 329 Rogue 146 Adventurer 105 Explorer 78 Win Type - Total 23 Types 16/0/5/2/0/0/0/0/0 Lore% 81 Gallery% 89 Achievement% 71 Wizard Run 0 Options --------- ASCII 0 Keyboard 0 Movement Numpad Keybinds 0 Fullscreen 2 Font 18/TerminusBold Map View 76x50 Tactical HUD 1 Map Filters NONE Filters NONE Steam 1 RUN: d433c7ba-07de-4b1a-97ad-c141f6204df3